Cogmind - Beta 14 @@@ ROGUE MODE // 2024.10.07 @ 18:55:06 Player: siona Result: Destroyed by G-47 Trooper with Particle Gun Performance ------------- Evolutions (3) 1500 Regions Visited (6) 1200 Robots Destroyed (60) 300 Value Destroyed (1626) 1626 Prototype IDs (5) 100 Alien Tech Used (0) 0 Bonus (123) 123 TOTAL SCORE: 4849 Bonus ------- High Alert Combat Kills 39 Follower Combat Kills 84 Cogmind --------- Core Integrity 0/700 Matter 221/300 Energy 81/100 System Corruption 20% Temperature Cool (29) Movement Core (50) Location -7/Storage Parts ------- > --- POWER (1) -------- (None) > --- PROPULSION (2) --- (None) > --- UTILITY (8) ------ Advanced Heat Sink Improved Melee Analysis Suite > --- WEAPON (2) ------- (None) > --- INVENTORY (5) ---- Carbon-fiber Leg Carbon-fiber Leg Aerolev Unit Peak State ------------ > --- POWER ------------ Light Nuclear Core > --- PROPULSION ------- Aerolev Unit Improved Airjet > --- UTILITY ---------- Signal Interpreter Core Analyzer Armor Integrity Analyzer Improved Light Armor Plating Hacking Suite Hacking Suite System Shield > --- WEAPON ----------- Beam Rifle Blade Saw > --- INVENTORY -------- Aerolev Unit Aerolev Unit Cooled VTOL Module Mining Laser [Rating: 39] Favorites ----------- Power Light Ion Engine Engine Light Ion Engine Power Core Light Nuclear Core Propulsion Wheel Leg Improved Carbon-fiber Leg Wheel Wheel Hover Unit Aerolev Unit Flight Unit VTOL Module Utility Signal Interpreter Device Heat Sink Storage Large Storage Unit Processor Signal Interpreter Hackware Hacking Suite Protection Light Armor Plating Weapon Light Cannon Energy Gun Beam Rifle Ballistic Gun Assault Rifle Ballistic Cannon Light Cannon Launcher Improved Grenade Launcher Special Weapon Mining Laser Slashing Weapon Blade Saw Build | -11 -10 -10 -10 -8 -7 -7 ------- Run | Yrd Mat Min Sub Mat Fac Sto Slots Evolved 6 | . . . . 4 2 . Power . | . . . . . . . Propulsion . | . . . . . . . Utility 6 | . . . . 4 2 . Weapon . | . . . . . . . Parts Attached 67 | 4 13 . 2 26 7 15 Power 6 | . 1 . . 4 1 . Engine 2 | . 1 . . 1 . . Core 4 | . . . . 3 1 . Reactor . | . . . . . . . Propulsion 23 | 2 6 . 1 5 2 7 Treads . | . . . . . . . Leg 2 | . . . . 2 . . Wheel 7 | 2 4 . 1 . . . Hover 7 | . 2 . . . . 5 Flight 7 | . . . . 3 2 2 Utility 15 | . 4 . . 5 3 3 Device 3 | . . . . 2 . 1 Storage 3 | . 3 . . . . . Processor 4 | . 1 . . 2 . 1 Hackware 3 | . . . . . 3 . Protection 2 | . . . . 1 . 1 Artifact . | . . . . . . . Weapon 23 | 2 2 . 1 12 1 5 Energy Gun 10 | . . . . 9 . 1 Energy Cannon . | . . . . . . . Ballistic Gun 4 | 2 . . . 1 1 . Ballistic Cannon 4 | . 2 . 1 1 . . Launcher 2 | . . . . . . 2 Special Weapon 1 | . . . . . . 1 Impact Weapon . | . . . . . . . Slashing Weapon 2 | . . . . 1 . 1 Piercing Weapon . | . . . . . . . Special Melee Weapon . | . . . . . . . Unidentified Prototypes 5 | . . . . 1 1 3 Parts Lost 32 | . 1 . 2 11 4 14 Power 5 | . . . 1 3 . 1 Propulsion 6 | . . . . 3 2 1 Utility 10 | . . . . 3 . 7 Weapon 11 | . 1 . 1 2 2 5 Highest Loss Streak 11 | . 1 . 1 5 4 11 To Critical Strikes 1 | . . . . . . 1 Average Slot Usage (%) 85 | . 91 100 94 67 62 52 Engine 9 | . 13 14 14 2 . . Core 1 | . . . . 4 . 4 Wheel 19 | . 27 28 28 5 . . Device 1 | . . . . 5 . 1 Storage 10 | . 12 14 14 8 . . Processor 14 | . 10 14 14 17 23 15 Hackware 1 | . . . . . 11 13 Energy Gun 3 | . . . . 14 8 3 Ballistic Gun 3 | . 10 . . . 5 . Ballistic Cannon 15 | . 16 28 22 2 . . Peak Build Rating 39 | 4 7 7 9 26 26 39 Average Rating 10 | 3 6 7 6 17 22 22 On Entrance 9 | . 4 7 7 9 18 21 Naked Turns 3 | . . . . . . 3 Heaviest Build 37 | 3 29 29 29 37 6 13 Greatest Support 36 | 20 20 20 30 36 8 17 Greatest Overweight (x) 10 | . 9 1 1 10 1 2 Average Overweight (x) . | . . 1 . 1 . . Largest Inventory Capacity 25 | 5 25 15 15 15 5 5 Average Capacity 13 | 5 13 15 15 14 5 5 Most Carried 8 | 1 6 7 8 8 5 5 Average Carried 4 | . 3 6 7 5 4 3 Final Capacity 15 | 5 15 15 15 5 5 5 Final Carried 8 | 1 6 7 8 5 5 3 Class Distribution -------------------- 77% | Mutant 12% | Scavenger-Mutant 4% | Hacker-Mutant 3% | Scavenger-Sprinter Dominant Class ---------------- Mutant | -10/Materials Mutant | -10/Mines Mutant | -10/Subcaves Scavenger-Mutant | -8/Materials Scavenger-Sprinter | -7/Factory Hacker-Mutant | -7/Storage Resources | -11 -10 -10 -10 -8 -7 -7 ----------- Run | Yrd Mat Min Sub Mat Fac Sto Matter Collected 1207 | 182 508 80 58 254 3 122 Remotely . | . . . . . . . Salvage Created 1894 | . 684 135 82 660 25 308 Parts 117 | . 47 10 4 41 1 14 Haulers Intercepted . | . . . . . . . Recyclers Shooed . | . . . . . . . Parts Field Recycled . | . . . . . . . Retrieved Matter . | . . . . . . . Parts Self-Destructed . | . . . . . . . Prevented . | . . . . . . . Kills | -11 -10 -10 -10 -8 -7 -7 ------- Run | Yrd Mat Min Sub Mat Fac Sto Combat Hostiles Destroyed 45 | . 16 2 2 18 1 6 Melee 1 | . . . . . . 1 Guns 15 | . 3 . . 11 1 . Cannons 19 | . 13 2 2 1 . 1 AOE 8 | . . . . 4 . 4 Classes Destroyed 12 | . 7 . 1 3 . 1 Worker 2 | . 2 . . . . . Tunneler 4 | . 1 3 . . . . Recycler 5 | . 2 1 . . . 2 Operator 1 | . 1 . . . . . Watcher 3 | . 3 . . . . . Swarmer 16 | . 6 2 . 4 1 3 Cutter 1 | . . . . 1 . . Grunt 19 | . 10 . . 7 . 2 Brawler 1 | . . . . . . 1 Sentry 4 | . . . . 4 . . Specialist 2 | . . . . 2 . . Subdweller 2 | . . . 2 . . . Best Kill Streak 6 | . 6 2 1 5 1 5 Combat Bots Only 5 | . 5 2 1 5 1 4 Max Kills in Single Turn 5 | . 1 1 1 3 1 5 Gunslinging . | . . . . . . . Exploded 4 | . . . . 3 . 4 Melee 1 | . . . . . . 1 Uniques/NPCs Destroyed . | . . . . . . . Combat | -11 -10 -10 -10 -8 -7 -7 -------- Run | Yrd Mat Min Sub Mat Fac Sto Hostile Shots Fired 354 | . 51 6 14 117 26 140 Missed 119 | . 21 . 3 27 13 55 Damage Taken 3876 | . 379 50 243 1612 282 1310 Core 1376 | . 82 . 51 540 21 682 Absorbed by Shields . | . . . . . . . Core Remaining (%) 49 | 100 . . 46 1 . . Volleys Fired 127 | . 53 11 6 49 5 3 Largest 2 | . 2 2 2 2 2 2 Hottest 126 | . 70 70 74 126 81 100 Shots Fired 224 | . 87 22 11 92 8 4 Gun 121 | . 23 . . 90 8 . Cannon 99 | . 64 22 11 2 . . Launcher 3 | . . . . . . 3 Special 1 | . . . . . . 1 Kinetic 132 | . 87 22 11 7 5 . Thermal 89 | . . . . 85 3 1 Explosive 3 | . . . . . . 3 Electromagnetic . | . . . . . . . Robot Hit Streak 22 | . 11 9 7 22 2 2 Robot Miss Streak 4 | . 4 1 2 4 1 1 Penetration Max 1 | . . . . 1 . . Secondary Targets 1 | . . . . 1 . . Max Gunslinging Chain 1 | . . . . 1 . . Shots Hit Robots 162 | . 52 14 7 61 4 24 Core Hits 91 | . 29 6 3 29 4 20 Critical Kills . | . . . . . . . Critical Parts Destroyed . | . . . . . . . Critical Strikes 14 | . 3 2 . 3 . 6 Burn 3 | . . . . 3 . . Blast 5 | . 3 2 . . . . Sever 6 | . . . . . . 6 Melee Attacks 26 | . . . . . . 26 Impact . | . . . . . . . Slashing 26 | . . . . . . 26 Piercing . | . . . . . . . Sneak Attacks 1 | . . . . . . 1 Combat Hostiles . | . . . . . . . Follow-up Attacks . | . . . . . . . Damage Inflicted 3526 | . 925 241 115 1377 67 801 Guns 1223 | . 163 . . 993 67 . Cannons 1159 | . 762 241 115 41 . . Explosions 833 | . . . . 343 . 490 Melee 278 | . . . . . . 278 Ramming 9 | . . . . . . 9 Kinetic 1475 | . 925 241 115 127 67 . Thermal 931 | . . . . 907 . 24 Explosive 833 | . . . . 343 . 490 Electromagnetic . | . . . . . . . Impact . | . . . . . . . Slashing 278 | . . . . . . 278 Piercing . | . . . . . . . Highest Corruption 20 | . . . . . . 20 Average Corruption 18 | . . . . . . 18 Corruption Purged . | . . . . . . . Corruption Blocked . | . . . . . . . Effects 7 | . . . . . . 7 Message Errors 1 | . . . . . . 1 Matter Fused 1 | . . . . . . 1 Energy Discharges 1 | . . . . . . 1 Parts Rejected 1 | . . . . . . 1 Data Loss (minor) 1 | . . . . . . 1 Misdirections 2 | . . . . . . 2 Overload Shots . | . . . . . . . Overflow Damage 66 | . . . . 51 . 15 Projectiles . | . . . . . . . Explosions 66 | . . . . 51 . 15 Melee . | . . . . . . . Knockbacks 9 | . 6 2 1 . . . Impact . | . . . . . . . Kinetic 9 | . 6 2 1 . . . Secondary . | . . . . . . . Self-Inflicted Damage 128 | . . . . 101 . 27 Shots 2 | . . . . 1 . 1 Rammed 1 | . . . . . . 1 Targets Rammed 1 | . . . . . . 1 Kicked . | . . . . . . . Crushed . | . . . . . . . Highest Temperature 317 | . 78 18 . 317 22 2 Average Temperature 53 | . 22 6 . 82 12 2 Received Heat Transfer 1038 | . 183 . 57 579 9 210 Siege Activations . | . . . . . . . Robots Corrupted . | . . . . . . . Combat Hostiles . | . . . . . . . Parts Fried . | . . . . . . . Impact Corruptions . | . . . . . . . Robots Melted 2 | . . . . 2 . . Combat Hostiles 2 | . . . . 2 . . Parts Melted 7 | . . . . 6 . 1 Heat Transferred 2381 | . . . . 2331 . 50 Parts Sabotaged . | . . . . . . . Parts Stolen . | . . . . . . . Parts Stripped . | . . . . . . . Power Chain Reactions . | . . . . . . . Alert | -11 -10 -10 -10 -8 -7 -7 ------- Run | Yrd Mat Min Sub Mat Fac Sto Peak Influence 623 | . 327 89 . 481 623 411 Initial 278 | . . 72 . . 208 278 Average 139 | . 113 30 . 235 410 295 Maximum Alert Level 2 | . 1 . . 2 2 2 Low Security (%) 70 | 100 87 100 . 40 . . Level 1 21 | . 12 . . 40 46 98 Level 2 7 | . . . . 18 53 1 Level 3 . | . . . . . . . Level 4 . | . . . . . . . Level 5 . | . . . . . . . High Security . | . . . . . . . Max Security . | . . . . . . . Squads Dispatched 14 | . 3 . . 4 3 4 Investigation 3 | . 1 . . 1 1 . Extermination . | . . . . . . . Reinforcement 8 | . 2 . . 2 2 2 Assault 2 | . . . . . . 2 Garrison 1 | . . . . 1 . . Intercept . | . . . . . . . Searches Triggered . | . . . . . . . Construction Impeded 1 | . . . . . . 1 Haulers Reinforced 1 | . . . . . . 1 Active Scanning Responses . | . . . . . . . Cargo Convoy Interrupts . | . . . . . . . Stealth | -11 -10 -10 -10 -8 -7 -7 --------- Run | Yrd Mat Min Sub Mat Fac Sto Distress Signals 5 | . 2 . . 2 . 1 Communications Jammed . | . . . . . . . Distress Signals . | . . . . . . . Times Spotted 95 | . 23 3 4 23 19 23 Peak Tracking Total 15 | . 6 3 3 4 8 15 Tactical Retreats 8 | . . 1 . 2 4 1 Traps | -11 -10 -10 -10 -8 -7 -7 ------- Run | Yrd Mat Min Sub Mat Fac Sto Traps Triggered 2 | . 2 . . . . . Indirectly . | . . . . . . . Trap Hack Attempts . | . . . . . . . Triggered . | . . . . . . . Disarmed . | . . . . . . . Reprogrammed . | . . . . . . . Reused . | . . . . . . . Traps Extracted . | . . . . . . . Installed . | . . . . . . . Triggered . | . . . . . . . Machines | -11 -10 -10 -10 -8 -7 -7 ---------- Run | Yrd Mat Min Sub Mat Fac Sto Machines Disabled 3 | . 1 1 . 1 . . Max in Single Turn 1 | . 1 1 . 1 . . Garrison Access 2 | . . . . 1 1 . Machines Repaired . | . . . . . . . Machines Dismantled . | . . . . . . . Machines Sabotaged . | . . . . . . . Overloaded Fab Kills . | . . . . . . . Hacking | -11 -10 -10 -10 -8 -7 -7 --------- Run | Yrd Mat Min Sub Mat Fac Sto Machines Accessed 4 | . . 1 . 1 2 . Terminals 2 | . . 1 . . 1 . Fabricators . | . . . . . . . Repair Stations . | . . . . . . . Recycling Units . | . . . . . . . Scanalyzers . | . . . . . . . Garrison Access 2 | . . . . 1 1 . Total Hacks 7 | . . 2 . 1 4 . Successful 3 | . . . . 1 2 . Failed 4 | . . 2 . . 2 . Catastrophic 1 | . . 1 . . . . Database Lockouts . | . . . . . . . Manual 7 | . . 2 . 1 4 . Terminals 4 | . . 2 . . 2 . Fabricators . | . . . . . . . Repair Stations . | . . . . . . . Recycling Units . | . . . . . . . Scanalyzers . | . . . . . . . Garrison Access 3 | . . . . 1 2 . Terminal Hacks 1 | . . . . . 1 . Branch Access Points 1 | . . . . . 1 . Fabricator Hacks . | . . . . . . . Repair Station Hacks . | . . . . . . . Recycling Unit Hacks . | . . . . . . . Scanalyzer . | . . . . . . . Garrison Access Hacks . | . . . . . . . Unauthorized Hacks 2 | . . . . 1 1 . Terminals . | . . . . . . . Fabricators . | . . . . . . . Repair Stations . | . . . . . . . Recycling Units . | . . . . . . . Scanalyzers . | . . . . . . . Garrison Access 2 | . . . . 1 1 . Jam 2 | . . . . 1 1 . Data Cores Recovered . | . . . . . . . Used . | . . . . . . . Hacking Detections 1 | . . 1 . . . . Full Trace Events 1 | . . 1 . . . . Feedback Events . | . . . . . . . Feedback Blocked . | . . . . . . . Robot Schematics Acquired . | . . . . . . . Robots Built . | . . . . . . . Authchips . | . . . . . . . Time . | . . . . . . . Total Robot Build Rating . | . . . . . . . Part Schematics Acquired . | . . . . . . . Parts Built . | . . . . . . . Authchips . | . . . . . . . Time . | . . . . . . . Total Part Build Rating . | . . . . . . . Parts Repaired . | . . . . . . . Time . | . . . . . . . Parts Recycled . | . . . . . . . Recycled Matter . | . . . . . . . Retrieved Matter . | . . . . . . . Retrieved Components . | . . . . . . . Parts Scanalyzed . | . . . . . . . Part Schematics Acquired . | . . . . . . . Parts Damaged . | . . . . . . . Bothacking | -11 -10 -10 -10 -8 -7 -7 ------------ Run | Yrd Mat Min Sub Mat Fac Sto Used RIF Installer . | . . . . . . . Robots Hacked . | . . . . . . . Non-combat . | . . . . . . . Combat . | . . . . . . . Robot Hacks Applied . | . . . . . . . Relay Couplers Released . | . . . . . . . Fabnet Peak Effective % . | . . . . . . . Robots Rewired . | . . . . . . . Allies Hacked . | . . . . . . . Hacks Repelled . | . . . . . . . Allies | -11 -10 -10 -10 -8 -7 -7 -------- Run | Yrd Mat Min Sub Mat Fac Sto Total Allies 3 | . . 1 . . . 2 Largest Group 2 | . . 1 . . . 2 Highest-Rated Group 62 | . . 31 . . . 62 Highest-Rated Ally 31 | . . 31 . . . 31 Total Orders . | . . . . . . . Ally Attacks 26 | . . 2 . . . 24 Total Damage 489 | . . 22 . . . 467 Kills 3 | . . 1 . . . 2 Allies Corrupted . | . . . . . . . Allies Melted . | . . . . . . . Intel | -11 -10 -10 -10 -8 -7 -7 ------- Run | Yrd Mat Min Sub Mat Fac Sto Robot Analysis Total . | . . . . . . . Derelict Logs Recovered 1 | . . 1 . . . . Drone Launches . | . . . . . . . Drone Recoveries . | . . . . . . . Exploration | -11 -10 -10 -10 -8 -7 -7 ------------- Run | Yrd Mat Min Sub Mat Fac Sto Turns Passed 3302 | 34 880 1162 102 720 186 218 Spaces Moved 2654 | 37 696 958 83 330 428 122 Core 70 | 7 1 . . 29 2 31 Treads . | . . . . . . . Legs 65 | . . . . 65 . . Wheels 1964 | 30 694 958 83 199 . . Hover 87 | . 1 . . . . 86 Flight 468 | . . . . 37 426 5 Fastest Speed 32 | 50 80 95 95 32 32 35 Average Speed 90 | 74 93 95 95 156 32 57 Slowest Speed 550 | 80 500 95 95 550 115 150 Overloaded Moves . | . . . . . . . Propulsion Burnouts . | . . . . . . . Robots Hopped 3 | . . . . . 2 1 Cave-ins Triggered . | . . . . . . . Exploration Rate (%) 38 | 3 92 102 8 28 14 25 Regions Visited 6 Branch Regions 3 Pre-discovered Areas 1 | . . 1 . . . . Known Exits Taken 5 | . 1 1 1 1 1 . Unknown Exits Taken 1 | 1 . . . . . . Scrap Searched 2 | . . 1 1 . . . Spaces Dug . | . . . . . . . Terrain Destroyed 43 | . . . . 21 . 22 Melee . | . . . . . . . Projectile . | . . . . . . . AOE 43 | . . . . 21 . 22 Terrain Rammed . | . . . . . . . Walls Destroyed . | . . . . . . . Machines Disabled . | . . . . . . . Actions | -11 -10 -10 -10 -8 -7 -7 --------- Run | Yrd Mat Min Sub Mat Fac Sto Total 3261 | 41 832 1187 94 434 464 209 Wait 351 | . 61 218 4 12 24 32 Move 2642 | 36 695 957 82 329 423 120 Hop 3 | . . . . . 2 1 Pick Up 16 | 1 4 1 . 4 1 5 Fast Attach 49 | 4 9 . 1 21 5 9 Attach 9 | . . . . 3 1 5 Detach . | . . . . . . . Swap 9 | . 4 . 1 2 1 1 Drop 28 | . 6 . . 14 2 6 Fire 127 | . 53 11 6 49 5 3 Melee 26 | . . . . . . 26 Ram 1 | . . . . . . 1 Kick . | . . . . . . . Crush . | . . . . . . . Escape Stasis . | . . . . . . . Rewire . | . . . . . . . Trap . | . . . . . . . Miscellaneous . | . . . . . . . Route ------- -11/Scrapyard -10/Materials (discovered 4 exits: *Mat x2 / *Min x2) -10/Mines (discovered 3 exits: *Mat x2 / *Sub) -10/Subcaves -8/Materials -7/Factory (discovered 3 exits: *Sto / Low x2) -7/Storage History --------- Turn | Location | Event 3 | -11/Scrapyard | Discovered new exit (range 15) 35 | -11/Scrapyard | Entered Materials 156 | -10/Materials | Discovered new exit (range 10) 272 | -10/Materials | Discovered new exit (range 8) 300 | -10/Materials | Build established: Mutant 424 | -10/Materials | Discovered new exit (range 6) 716 | -10/Materials | Discovered new exit (range 16) 914 | -10/Materials | Identified exit to Mines 915 | -10/Materials | Entered Mines 972 | -10/Mines | Met a Derelict bent on vengeance 1367 | -10/Mines | Discovered new exit (range 4) 1433 | -10/Mines | Identified exit to Materials 1541 | -10/Mines | Discovered exit to Materials (range 13) 1582 | -10/Mines | Received a Mining Laser from a helpful Derelict 1710 | -10/Mines | Learned location of Zion (-6) 2063 | -10/Mines | Discovered new exit (range 15) 2076 | -10/Mines | Identified exit to Subcaves 2077 | -10/Mines | Entered Subcaves 2088 | -10/Subcaves | Disturbed a concealed Subdweller 2132 | -10/Subcaves | Core integrity fell below 50% 2160 | -10/Subcaves | Discovered new exit (range 5) 2163 | -10/Subcaves | Identified exit to Materials 2169 | -10/Subcaves | Disturbed a concealed Subdweller 2179 | -10/Subcaves | Entered Materials 2179 | -8/Materials | Evolved 4 slots: Utility x4 2440 | -8/Materials | Core integrity fell below 50% 2443 | -8/Materials | Garrison activated, responded to threat 2491 | -8/Materials | Lost 4 parts (1p1u2w) 2594 | -8/Materials | Discovered new exit (range 3) 2598 | -8/Materials | Identified exit to Factory 2692 | -8/Materials | Core integrity fell below 20% 2730 | -8/Materials | Lost 5 parts (1p2n2u) 2790 | -8/Materials | Build established: Scavenger-Mutant 2899 | -8/Materials | Entered Factory 2899 | -7/Factory | Evolved 2 slots: Utility x2 3012 | -7/Factory | Identified exit to Storage 3012 | -7/Factory | Identified exit to Lower Caves 3085 | -7/Factory | Entered Storage 3099 | -7/Storage | Met a pair of Derelict thieves 3116 | -7/Storage | Lost 4 parts (2n2w) 3223 | -7/Storage | System corruption reached 10% 3269 | -7/Storage | Core integrity fell below 50% 3286 | -7/Storage | Lost 11 parts (1p7u3w) 3298 | -7/Storage | Core integrity fell below 20% 3303 | -7/Storage | Destroyed by G-47 Trooper with Particle Gun Last Messages --------------- 03295_ Slug penetrates Wall. 03295_ Acquired Imp. Grenade Launcher. 03299_ S-27 Virus destroyed. 03299_ G-47 Trooper destroyed. 03299_ R-06 Scavenger destroyed. 03299_ Slug penetrates Wall. 03300_ System corrupted: Matter fused (-8). 03300_ A-02 Transporter calls for reinforcements. 03300_ ALERT: Hostile activity reported, dispatching reinforcements to area. 03301_ Imp. Grenade Launcher destroyed. 03302_ Destroyed Imp. Grenade Launcher. 03302_ ALERT: Construction progress impeded, dispatching reinforcements to local area. 03302_ Critical hit (Burn: +37). 03302_ Slug penetrates Wall. 03303_ The unstable cave ceiling collapses. 03303_ Aerolev Unit destroyed. [Achievement: Back For More] Map ----- +----------------------------------------------------+ | ????????????????????######??#= # ? | | ????????????????????????????# # # | | ????????????????????????????# ########## | | ????????????????????????????# #????????? | | ????????????????????????????#" #????????? | | ????????????????????????????#%" #????????? | | ????????????????????????????#" #????????? | | ???????????????????########?# #????????? | | ???????????????????# # #????????? | | ???????????????????# # #########? | | ???????????????????# ! / # #? | | ???????????????????# [ # # T #? | | ???????????????????# % # # #? | | ???????????????????# ?# # ## | | ???????????????????# ?+ /^ # | | ???????????????????# ??# ### #? | | ???????????????????# ??#"??# """ #? | | ???????????????????######???#%??# """ #? | | ????????????????????????????#"??# """ #? | | ????????????????????????????# ??# #? | | ???????????????????########## ??# #? | | ???????????????????# # ###+#+#####? | | ???????????????????# # #????? | | ??????????????????## # #????? | | ??????????????????# # ####+###### | | ???????????????????# |@ # # # | | ???????????????????# ! # # !!! # | | ???????????????????# # !! # | | ???????????????????# Y u# !! # | | ???????????????????# u m/ # | | ???????????????????## = g # "Y" # | | ??????????????# ##### [Y g # """ # | | ??????????????# %=% Y g # # | | ??????????????# [k g ### ####### | | ??????????????# ### % ######?###?????? | | ???????????????????## ##?????????????? | | ????????????????????######???????????????? | | ?????????????????????????????????????????? | | ?????????????????????????????????????????? | | ?????????????????????????????????????????? | | ?????????????????????????????????????????? | | ?????????????????????????????????????????? | | ?????????????????????????????????????????? | | ?????????????????????????????????????????? | | ?????????????????????????????????????????? | | ?????????????????????????????????????????? | | ?????????????????????????????????????????? | | ?????????????????????????????????????????? | | ?????????????????????????????????????????? | | ?????????????????????????????????????????? | +----------------------------------------------------+ Best States ------------- Heat Dissipation 53 Energy Generation 14 Energy Capacity 265 Matter Stores 300 Matter Capacity 300 Sight Range 16 Terrain Scan Density 10 Armor Coverage 150 Evasion (%) 63 Melee Accuracy 6 Core Analysis 6 Armor Integrity Analysis 30 Offensive Hacking 20 Defensive Hacking 10 Item Schematics ----------------- None Robot Schematics ------------------ None Fabricated ------------ Nothing Alien Tech Used ----------------- None Achievements -------------- Back For More Challenges ------------ None Game ------ Seed 7 Manual? 1 Play Time 00:31:53 Cumulative 28.4 hours Start 2024.10.06 @ 16:51:05 End 2024.10.07 @ 18:55:06 Sessions 3 Manual Loads 0 Difficulty Rogue Special Mode None Game No. 50 Rogue 46 Adventurer 4 Explorer 0 Win Type - Total 2 Types 2/0/0/0/0/0/0/0/0 Lore% 26 Gallery% 28 Achievement% 33 Wizard Run 0 Options --------- Layout 1 ASCII 0 Keyboard 0 Movement Mouse Keybinds 0 Fullscreen 1 Font 32/SmallcapsGlow Map View 50x35 Zoom Use 0% Tactical HUD 1 Map Filters NONE Filters NONE Steam 1 RUN: 8c9da124-54c9-40cd-b912-6a73c3283db1